bitfinex/quotes_SOLUSD_20250416
["timestamp","ask_amount","ask_price","bid_price","bid_amount"]
[1744814148127,35.50680177,127.67,127.59,33.9336827]
[1744814148328,35.50680177,127.64,127.6,7.83699059]
[1744814148558,35.50680177,127.64,127.6,43.34379236]
[1744814149129,35.50680177,127.65,127.61,35.50680177]
[1744814149325,7.8314775,127.69,127.62,35.50680177]
[1744814149662,35.50680177,127.69,127.64,35.50680177]
[1744814149957,35.50680177,127.69,127.65,35.50680177]
[1744814150127,35.50680177,127.7,127.66,35.50680177]
[1744814150769,3.12794051,127.71,127.68,35.50680177]
[1744814150928,3.12794051,127.71,127.7,35.50680177]
[1744814151841,3.12794051,127.71,127.7,43.33765533]
[1744814152049,3.12794051,127.71,127.7,61.98730419]
[1744814152235,1e-08,127.71,127.7,61.98730419]
[1744814152642,1e-08,127.72,127.71,6.4976]
[1744814152838,0.03,127.77,127.72,18.64964886]
[1744814153140,0.03,127.77,127.75,35.50680177]
[1744814153348,0.03,127.77,127.76,35.50680177]
[1744814153744,0.03,127.77,127.76,43.33397772]
[1744814154145,0.03,127.77,127.76,61.98362658]
[1744814155159,1e-08,127.77,127.76,87.98362658]
[1744814155337,1e-08,127.77,127.76,7.82717595]
[1744814155537,1e-08,127.77,127.75,35.50680177]
[1744814155739,1e-08,127.77,127.76,35.50680177]
[1744814156459,1e-08,127.77,127.75,35.50680177]
[1744814156851,1e-08,127.77,127.76,35.50680177]
[1744814157047,1e-08,127.77,127.73,7.82901432]
[1744814157048,1e-08,127.77,127.73,26.47866318]
[1744814157254,1e-08,127.77,127.74,35.50680177]
[1744814157440,35.50680178,127.77,127.73,35.50680177]
[1744814158139,1e-08,127.77,127.74,35.50680177]
[1744814158334,1e-08,127.77,127.75,35.50680177]
[1744814158539,1e-08,127.77,127.74,35.50680177]
[1744814158743,43.33338592,127.77,127.73,35.50680177]
[1744814159132,43.33338592,127.77,127.68,7.83154289]
[1744814159133,35.50680177,127.74,127.68,7.83154289]
[1744814159441,1e-08,127.77,127.73,35.50680177]
[1744814159645,1e-08,127.77,127.74,35.50680177]
[1744814159848,1e-08,127.77,127.73,35.50680177]
[1744814160060,35.50680177,127.76,127.72,35.50680177]
[1744814160237,35.50680177,127.74,127.69,35.50680177]
[1744814160437,35.50680177,127.72,127.68,35.50680177]
[1744814160641,35.50680177,127.73,127.69,35.50680177]
[1744814160861,35.50680177,127.72,127.68,35.50680177]
[1744814161042,35.50680177,127.73,127.69,35.50680177]
[1744814161245,35.50680177,127.75,127.71,35.50680177]
[1744814161443,27.39297661,127.77,127.71,35.50680177]
[1744814161660,35.50680177,127.74,127.7,35.50680177]
[1744814161864,27.39297661,127.77,127.7,35.50680177]
[1744814162039,35.50680177,127.75,127.71,35.50680177]
[1744814162237,7.82656822,127.77,127.72,35.50680177]
[1744814162440,43.33336999,127.77,127.73,35.50680177]
[1744814162672,7.82656822,127.77,127.73,35.50680177]
[1744814162863,1e-08,127.77,127.74,35.50680177]
[1744814163176,35.50680177,127.75,127.69,7.83146683]
[1744814163351,1e-08,127.77,127.71,35.50680177]
[1744814163549,1e-08,127.77,127.73,35.50680177]
[1744814163849,1e-08,127.77,127.76,54.15645063]
[1744814164045,1e-08,127.77,127.76,61.98362658]
[1744814166173,2.9087309,127.85,127.77,18.64964886]
[1744814166398,2.9087309,127.85,127.84,35.50680177]
[1744814166844,2.9087309,127.85,127.81,14.32]
[1744814167042,38.41553267,127.85,127.81,35.50680177]
[1744814167273,2.9087309,127.85,127.83,35.50680177]
[1744814167453,2.9087309,127.85,127.8,26.0]
[1744814167658,2.9087309,127.85,127.82,35.50680177]
[1744814167874,2.9087309,127.85,127.79,25.10044886]
[1744814168165,2.9087309,127.85,127.8,7.82472613]
[1744814168367,2.9087309,127.85,127.8,43.3315279]
[1744814168566,35.50680177,127.84,127.78,26.0]
[1744814168746,35.50680177,127.82,127.77,14.32]
[1744814168947,35.50680177,127.82,127.78,43.33252696]
[1744814169141,35.50680177,127.8,127.75,7.82778864]
[1744814169342,35.50680177,127.78,127.74,7.82829197]
[1744814169652,1.6511,127.81,127.75,35.50680177]
[1744814169863,35.50680177,127.8,127.75,35.50680177]
[1744814170060,35.50680177,127.79,127.72,27.40368797]
[1744814170251,35.50680177,127.79,127.75,35.50680177]
[1744814170452,9.47545705,127.81,127.75,35.50680177]
[1744814170767,1.6511,127.81,127.77,35.50680177]
[1744814171065,57.65037476,127.82,127.74,61.50680177]
[1744814171271,35.50680177,127.81,127.77,35.50680177]
[1744814171475,35.50680177,127.79,127.75,35.50680177]
[1744814171770,22.14357299,127.82,127.76,35.50680177]
[1744814171965,22.14357299,127.82,127.77,35.50680177]
[1744814172170,57.65037476,127.82,127.78,35.50680177]
[1744814172348,49.82680177,127.82,127.78,35.50680177]
[1744814172674,10.9336309,127.85,127.8,35.50680177]
[1744814172870,10.9336309,127.85,127.77,7.82615083]
[1744814172871,35.50680177,127.84,127.77,7.82615083]
[1744814173045,35.50680177,127.83,127.77,7.82615083]
[1744814173246,35.50680177,127.8,127.75,7.82732542]
[1744814173456,35.50680177,127.79,127.75,43.33412719]
[1744814173660,18.7555191,127.85,127.75,7.82732542]
[1744814173867,35.50680177,127.81,127.75,7.82732542]
[1744814174058,38.30968413,127.85,127.77,35.50680177]
[1744814174355,35.50680177,127.81,127.77,35.50680177]
[1744814174764,38.30968413,127.85,127.74,7.82840144]
[1744814174765,35.50680177,127.78,127.74,7.82840144]
[1744814174968,35.50680177,127.77,127.73,43.33553552]
[1744814175160,35.50680177,127.76,127.71,7.83024038]
[1744814175359,35.50680177,127.75,127.71,43.33704215]
[1744814175649,35.50680177,127.76,127.72,35.50680177]
[1744814176169,35.50680177,127.76,127.72,43.33592258]
[1744814176576,35.50680177,127.74,127.7,7.83085356]
[1744814176869,35.50680177,127.74,127.67,25.90370236]
[1744814176870,35.50680177,127.71,127.68,7.8320802]
[1744814177049,35.50680177,127.72,127.68,43.33888197]
[1744814177259,35.50680177,127.75,127.71,35.50680177]
[1744814177656,14.54,127.76,127.68,7.8320802]
[1744814177657,35.50680177,127.73,127.68,7.8320802]
[1744814177858,35.50680177,127.69,127.65,7.83392087]
[1744814178055,35.50680177,127.7,127.66,35.50680177]
[1744814178260,35.50680177,127.7,127.66,7.83272545]
[1744814178461,7.83006189,127.72,127.66,7.83272545]
[1744814178758,35.50680177,127.75,127.71,35.50680177]
[1744814179569,35.50680177,127.74,127.69,35.50680177]
[1744814179762,35.50680177,127.72,127.66,53.4159935]
[1744814179954,35.50680177,127.72,127.66,33.83272545]
[1744814180274,35.50680177,127.75,127.71,35.50680177]
[1744814180672,35.50680177,127.73,127.69,43.33802156]
[1744814180871,35.50680177,127.74,127.69,43.33802156]
[1744814181075,35.50680177,127.75,127.7,35.50680177]
[1744814181567,35.50680177,127.75,127.69,7.83121979]
[1744814181568,35.50680177,127.73,127.69,43.33802156]
[1744814181878,35.50680177,127.72,127.67,7.83269366]
[1744814182054,35.50680177,127.7,127.66,43.33986796]
[1744814182253,14.54,127.75,127.67,35.50680177]
[1744814182466,14.54,127.75,127.68,35.50680177]
[1744814182467,35.50680177,127.73,127.68,35.50680177]
[1744814182659,35.50680177,127.73,127.69,35.50680177]
[1744814182973,35.50680177,127.73,127.68,35.50680177]
[1744814183170,35.50680177,127.72,127.66,27.41633424]
[1744814183480,22.36801775,127.75,127.69,35.50680177]
[1744814183785,35.50680177,127.73,127.66,27.41633424]
[1744814183960,35.50680177,127.73,127.69,35.50680177]
[1744814184161,35.50680177,127.74,127.7,43.33760946]
[1744814184481,22.36788567,127.75,127.7,35.50680177]
[1744814184676,22.36788567,127.75,127.69,43.33803957]
[1744814184888,35.50680177,127.73,127.69,7.8312378]
[1744814185191,35.50680177,127.7,127.65,7.83363761]
[1744814185495,35.50680177,127.66,127.62,0.063]
[1744814185676,35.50680177,127.64,127.62,30.063]
[1744814185876,35.50680177,127.67,127.62,73.40553557]
[1744814186074,35.50680177,127.64,127.62,30.063]
[1744814186267,35.50680177,127.63,127.62,30.063]
[1744814186779,35.50680177,127.63,127.62,0.063]
[1744814187177,53.64928098,127.63,127.62,0.063]
[1744814187892,53.64928098,127.64,127.62,0.063]
[1744814188060,53.64928098,127.63,127.62,0.063]
[1744814188772,1.5981,127.62,127.58,0.063]
[1744814188968,26.0,127.56,127.55,0.063]
[1744814189266,147.85856196,127.56,127.55,0.063]
[1744814189469,121.85856196,127.56,127.55,0.063]
[1744814190082,53.64928098,127.54,127.53,0.063]
[1744814190260,61.48995841,127.54,127.53,0.063]
[1744814190461,53.64928098,127.54,127.53,0.063]
[1744814190693,20.0,127.6,127.53,0.063]
[1744814190694,22.39637645,127.61,127.53,53.71228098]
[1744814190868,53.64928098,127.59,127.54,53.64928098]
[1744814191195,53.64928098,127.57,127.53,0.063]
[1744814191366,53.64928098,127.55,127.53,0.063]
[1744814191686,53.64928098,127.56,127.53,0.063]
[1744814192280,53.64928098,127.54,127.53,0.063]
[1744814192489,1.5231,127.53,127.5,0.063]
[1744814192681,107.29856196,127.51,127.5,0.063]
[1744814192879,53.64928098,127.51,127.5,0.063]
[1744814193080,107.29856196,127.51,127.5,0.063]
[1744814193483,121.85856196,127.51,127.5,0.063]
[1744814193796,68.20928098,127.51,127.5,0.063]
[1744814194394,6.1101,127.54,127.5,0.063]
[1744814194700,22.40022613,127.55,127.5,53.71228098]
[1744814194862,53.64928098,127.53,127.5,0.063]
[1744814195269,53.64928098,127.52,127.5,0.063]
[1744814195484,53.64928098,127.51,127.5,0.063]
[1744814195668,53.64928098,127.54,127.5,53.71228098]
[1744814195874,53.64928098,127.54,127.5,0.063]
[1744814196194,14.56,127.55,127.52,53.64928098]
[1744814196383,61.48712511,127.59,127.54,53.64928098]
[1744814196564,61.48712511,127.59,127.55,53.64928098]
[1744814196771,53.64928098,127.56,127.52,53.64928098]
[1744814197070,53.64928098,127.55,127.51,61.49180313]
[1744814197493,53.64928098,127.52,127.5,0.063]
[1744814197669,14.56,127.54,127.5,0.063]
[1744814197670,53.64928098,127.51,127.5,0.063]
[1744814198303,61.49180313,127.51,127.5,0.063]
[1744814198596,7.84142526,127.53,127.5,0.063]
[1744814198965,53.64928098,127.51,127.5,0.063]
[1744814199465,133.29856196,127.51,127.47,0.063]
[1744814199686,53.64928098,127.48,127.47,0.063]
[1744814200624,61.49364872,127.48,127.47,0.063]
[1744814202401,75.93364872,127.48,127.47,0.063]
[1744814202997,75.93364872,127.48,127.46,0.063]
[1744814203207,53.64928098,127.47,127.46,0.063]
[1744814203402,53.64928098,127.47,127.46,1e-08]
[1744814203604,78.58042984,127.47,127.41,0.063]
[1744814203910,53.64928098,127.42,127.41,0.063]
[1744814204490,61.4973425,127.42,127.41,0.063]
[1744814204818,7.84806152,127.42,127.41,0.063]
[1744814205114,61.4973425,127.42,127.41,0.063]
[1744814206104,61.4973425,127.42,127.39,0.063]
[1744814206105,26.0,127.4,127.39,0.063]
[1744814206306,151.94821082,127.4,127.34,0.063]
[1744814206511,53.64928098,127.35,127.34,0.063]
[1744814207014,68.08928098,127.36,127.34,0.063]
[1744814207219,14.44,127.36,127.34,0.063]
[1744814207400,53.64928098,127.35,127.34,0.063]
[1744814208209,14.44,127.36,127.34,0.063]
[1744814208388,53.64928098,127.36,127.34,0.063]
[1744814208590,53.64928098,127.37,127.34,0.063]
[1744814209014,53.64928098,127.38,127.34,0.063]
[1744814209512,53.64928098,127.37,127.34,0.063]
[1744814209814,48.28952164,127.4,127.34,0.063]
[1744814209815,41.91275554,127.4,127.34,0.063]
[1744814209995,53.64928098,127.36,127.34,0.063]
[1744814210195,53.64928098,127.37,127.34,0.063]
[1744814210420,53.64928098,127.35,127.34,0.063]
[1744814210910,53.64928098,127.38,127.34,53.71228098]
[1744814211096,53.64928098,127.39,127.35,53.64928098]
[1744814211291,14.44,127.4,127.36,53.64928098]
[1744814211292,68.08928098,127.4,127.36,53.64928098]
[1744814211595,14.44,127.4,127.37,53.64928098]
[1744814212114,53.64928098,127.39,127.34,0.063]
[1744814212300,53.64928098,127.38,127.34,0.063]
[1744814212503,53.64928098,127.38,127.35,7.85237534]
[1744814212696,53.64928098,127.37,127.34,0.063]
[1744814213219,53.64928098,127.37,127.34,7.91578676]
[1744814213609,53.64928098,127.36,127.34,0.063]
[1744814214523,22.28955425,127.4,127.35,53.64928098]
[1744814214726,75.93883523,127.4,127.36,53.64928098]
[1744814215221,53.64928098,127.39,127.35,53.64928098]
[1744814215394,14.44,127.4,127.37,53.64928098]
[1744814215716,68.08928098,127.4,127.36,53.64928098]
[1744814215920,75.93867498,127.4,127.36,53.64928098]
[1744814216094,14.44,127.4,127.37,53.64928098]
[1744814216500,14.44,127.4,127.36,53.64928098]
[1744814216711,14.44,127.4,127.37,53.64928098]
[1744814216916,53.64928098,127.39,127.35,91.50141005]
[1744814217314,75.93884112,127.4,127.35,91.50141005]
[1744814217919,68.08928098,127.4,127.36,53.64928098]
[1744814218116,75.93877126,127.4,127.36,53.64928098]
[1744814218421,53.64928098,127.39,127.35,83.64928098]
[1744814218622,61.49961798,127.39,127.35,53.64928098]
[1744814219126,7.850337,127.39,127.35,61.50152704]
[1744814219526,68.08928098,127.4,127.36,53.64928098]
[1744814219723,14.44,127.4,127.38,53.64928098]
[1744814220024,53.64928098,127.4,127.36,53.64928098]
[1744814220223,53.64928098,127.38,127.34,0.063]
[1744814220431,53.64928098,127.37,127.34,0.063]
[1744814220796,53.64928098,127.35,127.34,0.063]
[1744814222706,61.50165632,127.35,127.34,0.063]
[1744814223031,141.1509373,127.35,127.34,0.063]
[1744814223232,159.80058616,127.35,127.34,0.063]
[1744814223407,53.64928098,127.29,127.28,0.063]
[1744814224816,61.50535765,127.29,127.28,0.063]
[1744814226634,63.07915765,127.29,127.28,0.063]
[1744814226805,101.72880651,127.29,127.28,1e-08]
[1744814227132,46.0,127.26,127.23,0.063]
[1744814227303,53.64928098,127.24,127.23,0.063]
[1744814228615,61.50844476,127.24,127.23,0.063]
[1744814228826,61.50844476,127.24,127.19,59.7001144]
[1744814229017,53.64928098,127.23,127.19,59.7001144]
[1744814229407,61.50803635,127.25,127.21,53.64928098]
[1744814229607,7.85802173,127.26,127.21,53.64928098]
[1744814229806,53.64928098,127.25,127.21,53.64928098]
[1744814230007,21.81755371,127.27,127.22,53.64928098]
[1744814230231,53.64928098,127.25,127.21,53.64928098]
[1744814230727,53.64928098,127.25,127.21,61.50980381]
[1744814230926,53.64928098,127.26,127.22,53.64928098]
[1744814231230,53.64928098,127.28,127.24,53.64928098]
[1744814231732,61.50501256,127.3,127.26,53.64928098]
[1744814231914,75.46431594,127.31,127.27,53.64928098]
[1744814232112,53.64928098,127.29,127.25,53.64928098]
[1744814232317,53.64928098,127.27,127.22,6.2526]
[1744814232524,53.64928098,127.27,127.23,83.64928098]
[1744814233121,53.64928098,127.27,127.23,61.50894767]
[1744814233341,61.50664708,127.27,127.23,53.64928098]
[1744814233530,61.50664708,127.27,127.18,0.063]
[1744814233531,53.64928098,127.24,127.18,0.063]
[1744814233722,53.64928098,127.22,127.19,30.0]
[1744814234126,53.64928098,127.22,127.18,0.063]
[1744814234314,67.60928098,127.26,127.18,0.063]
[1744814234315,53.64928098,127.21,127.18,0.063]
[1744814234510,53.64928098,127.22,127.18,0.063]
[1744814234934,53.64928098,127.22,127.18,30.063]
[1744814235136,53.64928098,127.23,127.18,30.063]
[1744814235334,53.64928098,127.23,127.19,53.64928098]
[1744814235728,61.50918567,127.23,127.19,53.64928098]
[1744814235930,53.64928098,127.21,127.2,30.0]
[1744814236835,67.60928098,127.21,127.2,30.0]
[1744814237015,75.47029819,127.21,127.2,30.0]
[1744814237225,148.7721222,127.21,127.18,0.063]
[1744814237438,53.64928098,127.19,127.18,0.063]
[1744814237949,53.64928098,127.19,127.18,1e-08]
[1744814239028,61.5115343,127.19,127.18,1e-08]
[1744814240335,100.16118316,127.19,127.18,1e-08]
[1744814240549,26.0,127.16,127.14,0.063]
[1744814240871,121.25856196,127.15,127.14,0.063]
[1744814241046,121.25856196,127.15,127.12,0.063]
[1744814241251,53.64928098,127.13,127.12,0.063]
[1744814241638,38.64964886,127.12,127.09,0.063]
[1744814241852,53.64928098,127.1,127.09,0.063]
[1744814242147,121.25856196,127.1,127.09,1e-08]
[1744814242361,129.12638257,127.1,127.09,1e-08]
[1744814242730,75.47710159,127.1,127.09,1e-08]
[1744814243627,7.86746212,127.11,127.09,1e-08]
[1744814243835,53.64928098,127.12,127.09,1e-08]
[1744814244248,53.64928098,127.12,127.09,30.00000001]
[1744814244463,53.64928098,127.11,127.09,30.00000001]
[1744814244635,21.8260333,127.13,127.09,30.00000001]
[1744814244948,53.64928098,127.11,127.09,30.00000001]
[1744814245256,53.64928098,127.1,127.09,30.00000001]
[1744814245442,53.64928098,127.11,127.09,30.00000001]
[1744814245856,53.64928098,127.1,127.09,30.00000001]
[1744814246557,21.8260333,127.13,127.09,30.00000001]
[1744814246558,21.82623181,127.13,127.09,30.00000001]
[1744814246756,53.64928098,127.1,127.09,30.00000001]
[1744814247066,53.64928098,127.11,127.09,29.00000001]
[1744814247451,53.64928098,127.1,127.09,29.00000001]
[1744814248359,133.29856196,127.1,127.08,0.063]
[1744814248560,115.16700164,127.09,127.08,30.063]
[1744814248758,115.16700164,127.09,127.08,0.063]
[1744814248759,61.51772066,127.09,127.08,0.063]
[1744814249849,115.16700164,127.09,127.08,30.063]
[1744814251368,133.8166505,127.09,127.07,0.063]
[1744814251548,121.27856196,127.08,127.07,0.063]
[1744814252350,7.86843968,127.09,127.07,0.063]
[1744814252557,53.64928098,127.08,127.07,0.063]
[1744814252754,133.81726968,127.08,127.07,1e-08]
[1744814253070,141.16762082,127.08,127.07,1e-08]
[1744814253475,141.16762082,127.08,127.07,30.00000001]
[1744814254159,107.19098699,127.08,127.0,0.063]
[1744814254471,53.64928098,127.05,127.01,53.64928098]
[1744814254672,53.64928098,127.06,127.02,53.64928098]
[1744814254966,27.54170601,127.08,127.02,53.64928098]
[1744814255172,53.64928098,127.05,127.01,30.063]
[1744814255672,53.64928098,127.06,127.02,30.0]
[1744814256056,27.54170601,127.08,127.02,30.0]
[1744814256258,53.64928098,127.06,127.02,83.64928098]
[1744814256657,7.87091696,127.05,127.02,83.64928098]
[1744814257271,7.87091696,127.05,127.02,65.69480134]
[1744814257475,7.8705521,127.06,127.02,65.69480134]
[1744814257654,18.64964886,127.12,127.02,65.69480134]
[1744814257655,35.69480134,127.11,127.05,35.69480134]
[1744814257975,35.69480134,127.09,127.05,35.69480134]
[1744814258475,13.68,127.12,127.05,35.69480134]
[1744814258682,13.68,127.12,127.08,35.69480134]
[1744814258973,35.69480134,127.11,127.07,35.69480134]
[1744814259153,35.69480134,127.11,127.07,34.69480134]
[1744814259889,0.03,127.14,127.1,35.69480134]
[1744814260054,0.03,127.14,127.13,35.69480134]
[1744814260860,0.03,127.14,127.13,65.69480134]
[1744814261374,0.03,127.14,127.13,71.86480134]
[1744814261569,0.03,127.14,127.13,90.5144502]
[1744814261871,0.03,127.14,127.13,98.38041417]
[1744814262065,0.03,127.14,127.13,79.73076531]
[1744814262262,0.03,127.14,127.13,98.38041417]
[1744814262470,13.68,127.22,127.14,18.64964886]
[1744814262669,35.69480134,127.23,127.18,35.69480134]
[1744814263181,35.69480134,127.23,127.18,53.99408972]
[1744814263182,53.99408972,127.23,127.18,53.99408972]
[1744814263403,53.99408972,127.23,127.14,102.64373858]
[1744814263567,53.50491158,127.25,127.19,53.99408972]
[1744814263767,7.85854616,127.25,127.2,53.99408972]
[1744814263961,53.99408972,127.24,127.2,53.99408972]
[1744814264778,53.99408972,127.23,127.2,30.0]
[1744814264987,53.99408972,127.21,127.2,30.0]
[1744814265582,61.85510693,127.21,127.2,30.0]
[1744814266179,81.50764996,127.21,127.13,32.17]
[1744814266377,53.99408972,127.17,127.16,30.0]
[1744814266676,53.99408972,127.18,127.16,30.0]
[1744814266872,53.99408972,127.17,127.16,30.0]
[1744814267077,53.99408972,127.19,127.16,30.0]
[1744814267277,13.66,127.2,127.16,83.99408972]
[1744814267486,67.65408972,127.2,127.16,30.0]
[1744814267691,7.86287152,127.18,127.14,53.99408972]
[1744814267884,7.86287152,127.18,127.15,30.0]
[1744814268188,61.8566204,127.19,127.15,30.0]
[1744814268379,61.8566204,127.19,127.15,83.99408972]
[1744814268882,61.85588892,127.2,127.16,53.99408972]
[1744814269187,7.8617992,127.2,127.17,53.99408972]
[1744814269887,61.85588892,127.2,127.16,53.99408972]
[1744814270381,53.99408972,127.19,127.15,53.99408972]
[1744814270786,61.85588892,127.2,127.15,53.99408972]
[1744814271289,7.8617992,127.2,127.15,53.99408972]
[1744814271477,53.99408972,127.19,127.14,7.86525369]
[1744814271677,53.99408972,127.19,127.15,83.99408972]
[1744814272191,61.85691134,127.19,127.15,30.0]
[1744814272390,61.85691134,127.19,127.15,83.99408972]
[1744814272579,61.85598769,127.2,127.16,53.99408972]
[1744814272971,53.99408972,127.19,127.15,30.0]
[1744814273282,53.99408972,127.18,127.12,26.0]
[1744814273590,53.99408972,127.17,127.13,53.99408972]
[1744814274589,61.85777027,127.17,127.13,53.99408972]
[1744814274787,7.86368055,127.17,127.14,53.99408972]
[1744814275088,7.86368055,127.17,127.13,53.99408972]
[1744814275287,7.86292689,127.18,127.14,53.99408972]
[1744814275492,61.85701661,127.18,127.14,53.99408972]
[1744814275693,53.99408972,127.17,127.13,53.99408972]
[1744814276070,53.99408972,127.17,127.12,7.86629014]
[1744814276071,53.99408972,127.14,127.09,6.1425]
[1744814276285,53.52010569,127.18,127.09,6.1425]
[1744814276286,27.52010569,127.18,127.12,53.99408972]
[1744814276491,53.99408972,127.17,127.12,53.99408972]
[1744814276690,7.86365133,127.17,127.13,53.99408972]
[1744814277190,61.85774105,127.17,127.13,53.99408972]
[1744814277383,53.99408972,127.15,127.1,53.99408972]
[1744814277575,53.99408972,127.12,127.08,53.99408972]
[1744814278081,53.99408972,127.13,127.08,53.99408972]
[1744814279092,19.6615775,127.16,127.08,61.86294752]
[1744814279392,61.85881642,127.15,127.1,53.99408972]
[1744814279592,53.99408972,127.14,127.1,53.99408972]
[1744814280908,53.99408972,127.15,127.11,53.99408972]
[1744814281073,61.85848539,127.16,127.11,53.99408972]
[1744814281269,7.86287152,127.18,127.13,53.99408972]
[1744814281495,53.99408972,127.15,127.13,30.0]
[1744814282689,27.52005032,127.18,127.13,30.0]
[1744814282888,53.99408972,127.15,127.13,30.0]
[1744814283204,43.51515855,127.14,127.13,30.0]
[1744814283490,43.51515855,127.14,127.08,43.51853708]
[1744814283697,35.64981327,127.12,127.08,43.51853708]
[1744814283878,35.64981327,127.13,127.08,43.51853708]
[1744814284290,35.64981327,127.13,127.08,7.86872381]
[1744814284487,35.64981327,127.13,127.08,43.51853708]
[1744814285004,35.64981327,127.14,127.09,35.64981327]
[1744814285204,35.64981327,127.15,127.11,35.64981327]
[1744814285376,7.86287152,127.18,127.13,35.64981327]
[1744814285702,35.64981327,127.17,127.13,35.64981327]
[1744814285933,35.64981327,127.17,127.12,35.64981327]
[1744814286081,35.64981327,127.17,127.13,35.64981327]
[1744814286496,43.51268479,127.18,127.13,35.64981327]
[1744814286678,35.64981327,127.17,127.13,35.64981327]
[1744814287094,35.64981327,127.16,127.12,43.51630486]
[1744814287599,43.51382835,127.17,127.12,43.51630486]
[1744814288083,7.86401508,127.17,127.09,39.16]
[1744814288286,35.64981327,127.13,127.09,7.86816181]
[1744814288486,35.64981327,127.13,127.09,43.51797508]
[1744814288690,35.64981327,127.13,127.09,7.86816181]
[1744814288894,35.64981327,127.13,127.08,26.0]
[1744814289087,35.64981327,127.1,127.05,49.80503277]
[1744814289288,7.86755553,127.11,127.06,30.0]
[1744814289289,35.64981327,127.09,127.06,30.0]
[1744814289712,35.64981327,127.08,127.02,251.8604]
[1744814289915,35.64981327,127.08,127.03,35.64981327]
[1744814290215,35.64981327,127.08,127.04,35.64981327]
[1744814290901,43.51887213,127.08,127.07,0.063]
[1744814291292,7.86782061,127.1,127.07,0.063]
[1744814291495,13.16,127.14,127.08,35.64981327]
[1744814291704,48.80981327,127.14,127.09,35.64981327]
[1744814291906,35.64981327,127.13,127.09,35.64981327]
[1744814292111,35.64981327,127.12,127.08,35.64981327]
[1744814292287,35.64981327,127.11,127.07,30.063]
[1744814292488,35.64981327,127.1,127.07,30.063]
[1744814292687,35.64981327,127.09,127.07,30.063]
[1744814294294,35.64981327,127.1,127.07,30.063]
[1744814295014,43.51773029,127.1,127.07,0.063]
[1744814295713,35.64981327,127.08,127.07,0.063]
[1744814297109,35.64981327,127.09,127.07,0.063]
[1744814297310,35.64981327,127.08,127.07,0.063]
[1744814298328,29.937,127.07,127.02,43.58518112]
[1744814298624,35.64981327,127.06,127.02,43.58518112]
[1744814298995,65.58681327,127.07,127.03,35.64981327]
[1744814299223,65.58681327,127.07,127.03,43.52167954]
[1744814299392,30.0,127.04,127.02,43.58537317]
[1744814299792,30.0,127.04,127.02,43.58542954]
[1744814300225,30.0,127.04,127.02,0.063]
[1744814300432,30.0,127.04,127.02,35.71281327]
[1744814300604,30.0,127.04,127.03,35.64981327]
[1744814301001,30.0,127.04,127.02,43.58555901]
[1744814301225,30.0,127.04,127.03,35.64981327]
[1744814301610,43.51847472,127.09,127.03,35.64981327]
[1744814301815,35.64981327,127.08,127.04,35.64981327]
[1744814302207,7.86866145,127.09,127.04,35.64981327]
[1744814302401,43.51847472,127.09,127.04,35.64981327]
[1744814302596,33.16,127.13,127.06,35.64981327]
[1744814302817,35.64981327,127.14,127.1,35.64981327]
[1744814303220,43.51547659,127.14,127.1,35.64981327]
[1744814303429,43.51547659,127.14,127.1,43.51762214]
[1744814304027,35.64981327,127.14,127.1,43.51762214]
[1744814304207,35.64981327,127.15,127.11,35.64981327]
[1744814304712,35.64981327,127.14,127.1,7.86780887]
[1744814304919,35.64981327,127.14,127.1,43.51762214]
[1744814305620,35.64981327,127.15,127.11,35.64981327]
[1744814305824,43.51461356,127.15,127.1,7.86780887]
[1744814306031,35.64981327,127.13,127.09,35.64981327]
[1744814306206,35.64981327,127.12,127.08,35.64981327]
[1744814306530,7.86480029,127.15,127.1,35.64981327]
[1744814306531,35.64981327,127.14,127.1,35.64981327]
[1744814306721,35.64981327,127.14,127.07,27.54387345]
[1744814307035,35.64981327,127.13,127.08,35.64981327]
[1744814307246,35.64981327,127.14,127.1,43.51763388]
[1744814307733,7.86410821,127.16,127.1,43.51763388]
[1744814307928,43.51392148,127.16,127.12,35.64981327]
[1744814308110,43.51392148,127.16,127.11,35.64981327]
[1744814308311,35.64981327,127.15,127.11,35.64981327]
[1744814308631,43.51392148,127.16,127.12,35.64981327]
[1744814309336,35.64981327,127.15,127.1,43.51763388]
[1744814309553,35.64981327,127.13,127.07,39.16]
[1744814309834,35.64981327,127.13,127.08,35.64981327]
[1744814310009,35.64981327,127.13,127.09,35.64981327]
[1744814310407,35.64981327,127.1,127.03,6.1299]